[Event "Titled Tuesday Blitz May 31 Early 2022"]
[White "Kozlov, Oleg"]
[Black "Maghsoodloo, Parham"]
[WhiteFideId "4104544"]
[BlackFideId "12539929"]
[WhiteElo "2132"]
[BlackElo "2630"]
[Result "0-1"]
[Round "08"]
[TimeControl "180+1"]
[Date "2022.05.31"]
[WhiteClock "0:00:14"]
[BlackClock "0:01:08"]

1. d4 {[%clk 0:02:38]}  Nf6 {[%clk 0:02:59]} 2. c4 {[%clk 0:02:38]}  e6 {[%clk 0:02:59]} 3. g3 {[%clk 0:02:38]}  d5 {[%clk 0:03:00]} 4. Bg2 {[%clk 0:02:38]}  Bb4+ {[%clk 0:02:58]} 5. Nd2 {[%clk 0:02:37]}  O-O {[%clk 0:02:58]} 6. Nf3 {[%clk 0:02:37]}  b6 {[%clk 0:02:58]} 7. O-O {[%clk 0:02:36]}  a5 {[%clk 0:02:57]} 8. Ne5 {[%clk 0:02:34]}  c6 {[%clk 0:02:57]} 9. Qc2 {[%clk 0:02:31]}  Ba6 {[%clk 0:02:55]} 10. e3 {[%clk 0:02:22]}  Nfd7 {[%clk 0:02:53]} 11. Nd3 {[%clk 0:02:19]}  Bxd2 {[%clk 0:02:53]} 12. Bxd2 {[%clk 0:02:19]}  Bxc4 {[%clk 0:02:53]} 13. Rfc1 {[%clk 0:02:12]}  c5 {[%clk 0:02:45]} 14. b3 {[%clk 0:02:02]}  Bxd3 {[%clk 0:02:45]} 15. Qxd3 {[%clk 0:02:03]}  Nc6 {[%clk 0:02:45]} 16. dxc5 {[%clk 0:01:56]}  bxc5 {[%clk 0:02:40]} 17. e4 {[%clk 0:01:52]}  d4 {[%clk 0:02:24]} 18. f4 {[%clk 0:01:49]}  e5 {[%clk 0:02:24]} 19. f5 {[%clk 0:01:47]}  a4 {[%clk 0:02:23]} 20. g4 {[%clk 0:01:43]}  axb3 {[%clk 0:02:21]} 21. axb3 {[%clk 0:01:43]}  Nb4 {[%clk 0:02:18]} 22. Qc4 {[%clk 0:01:34]}  Rxa1 {[%clk 0:01:58]} 23. Rxa1 {[%clk 0:01:35]}  Qh4 {[%clk 0:01:58]} 24. h3 {[%clk 0:01:23]}  Qg3 {[%clk 0:01:55]} 25. Rf1 {[%clk 0:01:16]}  Qd3 {[%clk 0:01:47]} 26. Qxd3 {[%clk 0:01:09]}  Nxd3 {[%clk 0:01:47]} 27. Ra1 {[%clk 0:01:03]}  Rb8 {[%clk 0:01:41]} 28. Ra7 {[%clk 0:00:56]}  Nb6 {[%clk 0:01:37]} 29. Bf1 {[%clk 0:00:53]}  c4 {[%clk 0:01:36]} 30. bxc4 {[%clk 0:00:47]}  Nc5 {[%clk 0:01:35]} 31. Bb4 {[%clk 0:00:39]}  Nxe4 {[%clk 0:01:36]} 32. Bd3 {[%clk 0:00:38]}  Nf6 {[%clk 0:01:27]} 33. Bd6 {[%clk 0:00:37]}  Re8 {[%clk 0:01:20]} 34. g5 {[%clk 0:00:33]}  e4 {[%clk 0:01:19]} 35. Bb1 {[%clk 0:00:16]}  Nxc4 {[%clk 0:01:16]} 36. Bc5 {[%clk 0:00:13]}  e3 {[%clk 0:01:06]} 37. Bd3 {[%clk 0:00:13]}  Ne5 {[%clk 0:01:06]} 38. Bxd4 {[%clk 0:00:11]}  Nxd3 {[%clk 0:01:06]} 39. gxf6 {[%clk 0:00:12]}  e2 {[%clk 0:01:06]} 40. Bc3 {[%clk 0:00:13]}  e1=Q+ {[%clk 0:01:06]} 41. Bxe1 {[%clk 0:00:13]}  Rxe1+ {[%clk 0:01:07]} 42. Kg2 {[%clk 0:00:14]}  gxf6 {[%clk 0:01:07]} 43. Ra8+ {[%clk 0:00:14]}  Kg7 {[%clk 0:01:08]} 44. Ra3 {[%clk 0:00:14]}  Re3 {[%clk 0:01:08]} 45. Ra4 {[%clk 0:00:13]}  h5 {[%clk 0:01:08]} 46. Rb4 {[%clk 0:00:13]}  Kh6 {[%clk 0:01:08]} 47. Rc4 {[%clk 0:00:13]}  Kg5 {[%clk 0:01:08]} 48. Rd4 {[%clk 0:00:14]}  Nf4+ {[%clk 0:01:08]} 0-1


[Site "https://www.chess.com"]

[Event "Titled Tuesday Blitz May 31 Early 2022"]
[White "Le, Tuan Minh"]
[Black "Kovalev, Vladislav"]
[WhiteFideId "12401153"]
[BlackFideId "13504398"]
[WhiteElo "2450"]
[BlackElo "2530"]
[Result "0-1"]
[Round "08"]
[TimeControl "180+1"]
[Date "2022.05.31"]
[WhiteClock "0:00:04"]
[BlackClock "0:00:12"]

1. d4 {[%clk 0:03:00]}  Nf6 {[%clk 0:02:57]} 2. Nf3 {[%clk 0:03:00]}  e6 {[%clk 0:02:54]} 3. Bf4 {[%clk 0:03:00]}  d5 {[%clk 0:02:54]} 4. e3 {[%clk 0:03:00]}  c5 {[%clk 0:02:54]} 5. c3 {[%clk 0:03:00]}  Nc6 {[%clk 0:02:55]} 6. Nbd2 {[%clk 0:03:00]}  cxd4 {[%clk 0:02:56]} 7. exd4 {[%clk 0:03:00]}  Nh5 {[%clk 0:02:56]} 8. Be5 {[%clk 0:03:01]}  f6 {[%clk 0:02:54]} 9. Bg3 {[%clk 0:03:01]}  g6 {[%clk 0:02:51]} 10. Be2 {[%clk 0:03:00]}  Bh6 {[%clk 0:02:52]} 11. O-O {[%clk 0:03:00]}  O-O {[%clk 0:02:52]} 12. Nb3 {[%clk 0:03:01]}  b6 {[%clk 0:02:51]} 13. Re1 {[%clk 0:02:59]}  Ne7 {[%clk 0:02:41]} 14. Bd3 {[%clk 0:02:49]}  Qd7 {[%clk 0:02:29]} 15. Qc2 {[%clk 0:02:39]}  Nf4 {[%clk 0:02:21]} 16. Bxf4 {[%clk 0:02:36]}  Bxf4 {[%clk 0:02:22]} 17. Re2 {[%clk 0:02:37]}  Qd6 {[%clk 0:01:51]} 18. Rd1 {[%clk 0:02:37]}  Bd7 {[%clk 0:01:49]} 19. Rde1 {[%clk 0:02:37]}  Rae8 {[%clk 0:01:47]} 20. Nbd2 {[%clk 0:02:26]}  Kg7 {[%clk 0:01:44]} 21. Nf1 {[%clk 0:02:26]}  Nf5 {[%clk 0:01:17]} 22. Ng3 {[%clk 0:02:19]}  h5 {[%clk 0:01:11]} 23. Qb3 {[%clk 0:01:49]}  h4 {[%clk 0:01:03]} 24. Nxf5+ {[%clk 0:01:46]}  exf5 {[%clk 0:01:04]} 25. Bb5 {[%clk 0:01:44]}  Rxe2 {[%clk 0:01:00]} 26. Rxe2 {[%clk 0:01:43]}  Bc8 {[%clk 0:00:53]} 27. Qd1 {[%clk 0:01:20]}  h3 {[%clk 0:00:45]} 28. g3 {[%clk 0:01:15]}  Bh6 {[%clk 0:00:45]} 29. Qe1 {[%clk 0:01:14]}  Rf7 {[%clk 0:00:31]} 30. Re8 {[%clk 0:00:42]}  Qc7 {[%clk 0:00:27]} 31. Bd3 {[%clk 0:00:30]}  Bd7 {[%clk 0:00:20]} 32. Re7 {[%clk 0:00:29]}  Qd6 {[%clk 0:00:17]} 33. Rxf7+ {[%clk 0:00:26]}  Kxf7 {[%clk 0:00:18]} 34. Nh4 {[%clk 0:00:26]}  Bg5 {[%clk 0:00:13]} 35. Nf3 {[%clk 0:00:23]}  Bh6 {[%clk 0:00:12]} 36. Nd2 {[%clk 0:00:11]}  f4 {[%clk 0:00:11]} 37. Nf1 {[%clk 0:00:12]}  fxg3 {[%clk 0:00:10]} 38. fxg3 {[%clk 0:00:13]}  f5 {[%clk 0:00:03]} 39. Qe2 {[%clk 0:00:13]}  f4 {[%clk 0:00:03]} 40. Qf3 {[%clk 0:00:13]}  Kg7 {[%clk 0:00:02]} 41. Bc2 {[%clk 0:00:12]}  Be6 {[%clk 0:00:02]} 42. g4 {[%clk 0:00:11]}  Qe7 {[%clk 0:00:02]} 43. Qxh3 {[%clk 0:00:11]}  Qg5 {[%clk 0:00:02]} 44. Qg2 {[%clk 0:00:10]}  Qxg4 {[%clk 0:00:02]} 45. Qxg4 {[%clk 0:00:10]}  Bxg4 {[%clk 0:00:03]} 46. Kf2 {[%clk 0:00:10]}  g5 {[%clk 0:00:03]} 47. Nd2 {[%clk 0:00:09]}  Be6 {[%clk 0:00:03]} 48. Nf3 {[%clk 0:00:09]}  Kf6 {[%clk 0:00:04]} 49. Ne5 {[%clk 0:00:09]}  g4 {[%clk 0:00:04]} 50. Bd1 {[%clk 0:00:09]}  Kg5 {[%clk 0:00:04]} 51. Be2 {[%clk 0:00:10]}  Bg7 {[%clk 0:00:04]} 52. Nc6 {[%clk 0:00:09]}  a5 {[%clk 0:00:05]} 53. Nd8 {[%clk 0:00:09]}  Bg8 {[%clk 0:00:05]} 54. Nc6 {[%clk 0:00:07]}  Bf6 {[%clk 0:00:05]} 55. b4 {[%clk 0:00:07]}  axb4 {[%clk 0:00:05]} 56. Nxb4 {[%clk 0:00:07]}  Bf7 {[%clk 0:00:04]} 57. Nd3 {[%clk 0:00:07]}  Kh4 {[%clk 0:00:04]} 58. Nxf4 {[%clk 0:00:07]}  Bg5 {[%clk 0:00:05]} 59. Nd3 {[%clk 0:00:06]}  Bd2 {[%clk 0:00:05]} 60. Ne5 {[%clk 0:00:05]}  Be6 {[%clk 0:00:06]} 61. Ng6+ {[%clk 0:00:02]}  Kg5 {[%clk 0:00:06]} 62. Ne5 {[%clk 0:00:02]}  Bxc3 {[%clk 0:00:06]} 63. Ke3 {[%clk 0:00:03]}  Bb2 {[%clk 0:00:05]} 64. Bd1 {[%clk 0:00:01]}  Bc1+ {[%clk 0:00:06]} 65. Ke2 {[%clk 0:00:02]}  Bf4 {[%clk 0:00:07]} 66. Nd3 {[%clk 0:00:02]}  Bxh2 {[%clk 0:00:07]} 67. Kf2 {[%clk 0:00:02]}  Bd6 {[%clk 0:00:08]} 68. Nc1 {[%clk 0:00:02]}  Bf5 {[%clk 0:00:08]} 69. Ne2 {[%clk 0:00:02]}  Be4 {[%clk 0:00:09]} 70. Nc3 {[%clk 0:00:02]}  Bh1 {[%clk 0:00:09]} 71. Kg1 {[%clk 0:00:03]}  Be4 {[%clk 0:00:09]} 72. Nxe4+ {[%clk 0:00:03]}  dxe4 {[%clk 0:00:10]} 73. Kf2 {[%clk 0:00:04]}  Kf4 {[%clk 0:00:10]} 74. Be2 {[%clk 0:00:04]}  g3+ {[%clk 0:00:10]} 75. Kg2 {[%clk 0:00:05]}  Ke3 {[%clk 0:00:11]} 76. Bh5 {[%clk 0:00:05]}  Kxd4 {[%clk 0:00:11]} 77. Kf1 {[%clk 0:00:05]}  b5 {[%clk 0:00:11]} 78. Ke2 {[%clk 0:00:05]}  b4 {[%clk 0:00:12]} 79. Bf7 {[%clk 0:00:05]}  Bc5 {[%clk 0:00:12]} 80. Be6 {[%clk 0:00:05]}  Kc3 {[%clk 0:00:12]} 81. Bh3 {[%clk 0:00:04]}  Kb2 {[%clk 0:00:12]} 0-1


[Site "https://www.chess.com"]

[Event "Titled Tuesday Blitz May 31 Early 2022"]
[White "Lehtosaari, Mauri"]
[Black "Sibilio, Mario"]
[WhiteFideId "501999"]
[BlackFideId "800422"]
[WhiteElo "2479"]
[BlackElo "2296"]
[Result "1-0"]
[Round "08"]
[TimeControl "180+1"]
[Date "2022.06.01"]
[WhiteClock "0:00:05"]
[BlackClock "0:00:01"]

1. d4 {[%clk 0:03:00]}  Nf6 {[%clk 0:02:58]} 2. Nf3 {[%clk 0:03:01]}  e6 {[%clk 0:02:58]} 3. Bg5 {[%clk 0:03:01]}  Be7 {[%clk 0:02:54]} 4. Nbd2 {[%clk 0:03:01]}  h6 {[%clk 0:02:54]} 5. Bh4 {[%clk 0:03:01]}  d6 {[%clk 0:02:39]} 6. e4 {[%clk 0:02:52]}  Nbd7 {[%clk 0:02:38]} 7. Bd3 {[%clk 0:02:51]}  e5 {[%clk 0:02:38]} 8. c3 {[%clk 0:02:50]}  Nh5 {[%clk 0:02:33]} 9. Bxe7 {[%clk 0:02:43]}  Qxe7 {[%clk 0:02:32]} 10. g3 {[%clk 0:02:33]}  O-O {[%clk 0:02:23]} 11. Nh4 {[%clk 0:02:22]}  Nf4 {[%clk 0:02:20]} 12. gxf4 {[%clk 0:01:32]}  Qxh4 {[%clk 0:02:18]} 13. fxe5 {[%clk 0:01:26]}  dxe5 {[%clk 0:02:16]} 14. Qf3 {[%clk 0:01:23]}  exd4 {[%clk 0:02:11]} 15. cxd4 {[%clk 0:01:23]}  c5 {[%clk 0:02:11]} 16. O-O-O {[%clk 0:01:21]}  cxd4 {[%clk 0:02:10]} 17. Nc4 {[%clk 0:00:40]}  b5 {[%clk 0:02:09]} 18. Nd6 {[%clk 0:00:19]}  Ne5 {[%clk 0:02:08]} 19. Qg3 {[%clk 0:00:20]}  Qxg3 {[%clk 0:02:04]} 20. hxg3 {[%clk 0:00:21]}  Be6 {[%clk 0:01:58]} 21. Kb1 {[%clk 0:00:16]}  Bg4 {[%clk 0:01:47]} 22. Rd2 {[%clk 0:00:16]}  a6 {[%clk 0:01:34]} 23. f4 {[%clk 0:00:16]}  Nxd3 {[%clk 0:01:12]} 24. Rxd3 {[%clk 0:00:17]}  Rad8 {[%clk 0:01:10]} 25. Nb7 {[%clk 0:00:15]}  Rd7 {[%clk 0:01:06]} 26. Nc5 {[%clk 0:00:15]}  Rd6 {[%clk 0:01:04]} 27. Nb3 {[%clk 0:00:14]}  Re8 {[%clk 0:01:00]} 28. Re1 {[%clk 0:00:14]}  Bf5 {[%clk 0:00:55]} 29. Nd2 {[%clk 0:00:13]}  g5 {[%clk 0:00:43]} 30. b3 {[%clk 0:00:13]}  gxf4 {[%clk 0:00:37]} 31. gxf4 {[%clk 0:00:14]}  Kh8 {[%clk 0:00:34]} 32. Kb2 {[%clk 0:00:13]}  Bh7 {[%clk 0:00:32]} 33. f5 {[%clk 0:00:12]}  Bxf5 {[%clk 0:00:28]} 34. Rf3 {[%clk 0:00:12]}  Bg6 {[%clk 0:00:28]} 35. e5 {[%clk 0:00:11]}  Rde6 {[%clk 0:00:27]} 36. Rf4 {[%clk 0:00:11]}  Rxe5 {[%clk 0:00:26]} 37. Rxe5 {[%clk 0:00:11]}  Rxe5 {[%clk 0:00:26]} 38. Rxd4 {[%clk 0:00:12]}  h5 {[%clk 0:00:24]} 39. Rd6 {[%clk 0:00:12]}  Re6 {[%clk 0:00:23]} 40. Rd4 {[%clk 0:00:11]}  Kg7 {[%clk 0:00:22]} 41. Kc3 {[%clk 0:00:11]}  Kf6 {[%clk 0:00:21]} 42. Kb4 {[%clk 0:00:12]}  Kg5 {[%clk 0:00:14]} 43. Nf3+ {[%clk 0:00:11]}  Kf6 {[%clk 0:00:12]} 44. Ka5 {[%clk 0:00:10]}  Re2 {[%clk 0:00:11]} 45. a4 {[%clk 0:00:09]}  bxa4 {[%clk 0:00:10]} 46. bxa4 {[%clk 0:00:09]}  Be4 {[%clk 0:00:08]} 47. Nd2 {[%clk 0:00:08]}  Bb7 {[%clk 0:00:07]} 48. Kb6 {[%clk 0:00:08]}  Re7 {[%clk 0:00:06]} 49. a5 {[%clk 0:00:07]}  Kg5 {[%clk 0:00:04]} 50. Nb3 {[%clk 0:00:06]}  h4 {[%clk 0:00:02]} 51. Nc5 {[%clk 0:00:07]}  Bg2 {[%clk 0:00:01]} 52. Nxa6 {[%clk 0:00:07]}  h3 {[%clk 0:00:01]} 53. Nc5 {[%clk 0:00:05]}  h2 {[%clk 0:00:01]} 54. Rd1 {[%clk 0:00:05]} 1-0


[Site "https://www.chess.com"]

[Event "Titled Tuesday Blitz May 31 Early 2022"]
[White "Leiva, Gianmarco"]
[Black "Bekturov, Tamerlan"]
[WhiteFideId "3804399"]
[BlackFideId "13710184"]
[WhiteElo "2323"]
[BlackElo "2151"]
[Result "1-0"]
[Round "08"]
[TimeControl "180+1"]
[Date "2022.05.31"]
[WhiteClock "0:00:10"]
[BlackClock "0:00:09"]

1. Nf3 {[%clk 0:03:00]}  d5 {[%clk 0:02:58]} 2. g3 {[%clk 0:02:59]}  Nd7 {[%clk 0:02:58]} 3. d4 {[%clk 0:02:55]}  Ngf6 {[%clk 0:02:58]} 4. Bg2 {[%clk 0:02:55]}  e6 {[%clk 0:02:55]} 5. O-O {[%clk 0:02:49]}  b5 {[%clk 0:02:56]} 6. Ne5 {[%clk 0:02:41]}  Bb7 {[%clk 0:02:51]} 7. Bg5 {[%clk 0:02:34]}  Be7 {[%clk 0:02:41]} 8. Qd3 {[%clk 0:02:25]}  a6 {[%clk 0:02:32]} 9. Bxf6 {[%clk 0:01:58]}  Nxf6 {[%clk 0:02:29]} 10. Nd2 {[%clk 0:01:55]}  c5 {[%clk 0:02:26]} 11. c3 {[%clk 0:01:46]}  O-O {[%clk 0:02:25]} 12. a4 {[%clk 0:01:43]}  b4 {[%clk 0:02:14]} 13. cxb4 {[%clk 0:01:39]}  cxb4 {[%clk 0:02:01]} 14. a5 {[%clk 0:01:37]}  Rc8 {[%clk 0:01:42]} 15. Nb3 {[%clk 0:01:35]}  Nd7 {[%clk 0:01:29]} 16. Nxd7 {[%clk 0:01:24]}  Qxd7 {[%clk 0:01:30]} 17. Rfc1 {[%clk 0:01:21]}  Rxc1+ {[%clk 0:01:29]} 18. Rxc1 {[%clk 0:01:22]}  Rc8 {[%clk 0:01:30]} 19. Rxc8+ {[%clk 0:01:20]}  Qxc8 {[%clk 0:01:30]} 20. e3 {[%clk 0:01:20]}  Bc6 {[%clk 0:01:25]} 21. Bf1 {[%clk 0:01:13]}  Bb5 {[%clk 0:01:22]} 22. Qd1 {[%clk 0:01:14]}  Ba4 {[%clk 0:01:09]} 23. Qd3 {[%clk 0:01:09]}  Bd8 {[%clk 0:00:43]} 24. Nc5 {[%clk 0:00:33]}  Bb5 {[%clk 0:00:42]} 25. Qd1 {[%clk 0:00:32]}  Bxa5 {[%clk 0:00:41]} 26. Bxb5 {[%clk 0:00:32]}  axb5 {[%clk 0:00:41]} 27. Qa1 {[%clk 0:00:13]}  Bb6 {[%clk 0:00:36]} 28. Nd3 {[%clk 0:00:13]}  h6 {[%clk 0:00:25]} 29. Nxb4 {[%clk 0:00:12]}  Qc4 {[%clk 0:00:23]} 30. Qa8+ {[%clk 0:00:10]}  Kh7 {[%clk 0:00:22]} 31. Nc6 {[%clk 0:00:11]}  Qc1+ {[%clk 0:00:08]} 32. Kg2 {[%clk 0:00:10]}  Qc2 {[%clk 0:00:08]} 33. Ne7 {[%clk 0:00:08]}  Qe4+ {[%clk 0:00:06]} 34. Kh3 {[%clk 0:00:08]}  h5 {[%clk 0:00:02]} 35. Qg8+ {[%clk 0:00:07]}  Kh6 {[%clk 0:00:02]} 36. Qxf7 {[%clk 0:00:03]}  Qg4+ {[%clk 0:00:02]} 37. Kg2 {[%clk 0:00:03]}  Qe4+ {[%clk 0:00:03]} 38. Qf3 {[%clk 0:00:03]}  Qc2 {[%clk 0:00:03]} 39. Qf4+ {[%clk 0:00:02]}  Kh7 {[%clk 0:00:03]} 40. Qe5 {[%clk 0:00:03]}  Qe4+ {[%clk 0:00:03]} 41. Qxe4+ {[%clk 0:00:03]}  dxe4 {[%clk 0:00:03]} 42. Nc6 {[%clk 0:00:03]}  Bc7 {[%clk 0:00:03]} 43. Na7 {[%clk 0:00:03]}  b4 {[%clk 0:00:03]} 44. Nc6 {[%clk 0:00:04]}  Bd6 {[%clk 0:00:03]} 45. f3 {[%clk 0:00:03]}  exf3+ {[%clk 0:00:03]} 46. Kxf3 {[%clk 0:00:04]}  Kg6 {[%clk 0:00:04]} 47. h3 {[%clk 0:00:05]}  Kf5 {[%clk 0:00:05]} 48. Na5 {[%clk 0:00:04]}  Bc7 {[%clk 0:00:05]} 49. Nc4 {[%clk 0:00:04]}  Bd8 {[%clk 0:00:04]} 50. Nd6+ {[%clk 0:00:04]}  Kg6 {[%clk 0:00:03]} 51. Ne4 {[%clk 0:00:04]}  Be7 {[%clk 0:00:02]} 52. Nc5 {[%clk 0:00:04]}  Kf5 {[%clk 0:00:02]} 53. g4+ {[%clk 0:00:03]}  Kf6 {[%clk 0:00:03]} 54. Kf4 {[%clk 0:00:02]}  hxg4 {[%clk 0:00:03]} 55. hxg4 {[%clk 0:00:03]}  Bd6+ {[%clk 0:00:04]} 56. Kf3 {[%clk 0:00:04]}  g5 {[%clk 0:00:04]} 57. Ne4+ {[%clk 0:00:04]}  Ke7 {[%clk 0:00:05]} 58. b3 {[%clk 0:00:05]}  Bc7 {[%clk 0:00:03]} 59. Nxg5 {[%clk 0:00:05]}  Kd6 {[%clk 0:00:04]} 60. Ne4+ {[%clk 0:00:06]}  Kd5 {[%clk 0:00:05]} 61. Nf2 {[%clk 0:00:06]}  Bd8 {[%clk 0:00:06]} 62. Nd3 {[%clk 0:00:06]}  Be7 {[%clk 0:00:07]} 63. Kf4 {[%clk 0:00:06]}  Bd6+ {[%clk 0:00:06]} 64. Kf3 {[%clk 0:00:06]}  Be7 {[%clk 0:00:07]} 65. Ke2 {[%clk 0:00:07]}  Ke4 {[%clk 0:00:06]} 66. Nf2+ {[%clk 0:00:07]}  Kd5 {[%clk 0:00:07]} 67. Kd3 {[%clk 0:00:08]}  e5 {[%clk 0:00:07]} 68. e4+ {[%clk 0:00:08]}  Ke6 {[%clk 0:00:08]} 69. d5+ {[%clk 0:00:09]}  Kf6 {[%clk 0:00:08]} 70. Nh3 {[%clk 0:00:09]}  Kg6 {[%clk 0:00:08]} 71. Kc4 {[%clk 0:00:09]}  Kf6 {[%clk 0:00:09]} 72. Kb5 {[%clk 0:00:10]}  Kg6 {[%clk 0:00:09]} 73. Kc6 {[%clk 0:00:10]} 1-0


[Site "https://www.chess.com"]

[Event "Titled Tuesday Blitz May 31 Early 2022"]
[White "Makarian, Rudik"]
[Black "Zhigalko, Sergei"]
[WhiteFideId "44105681"]
[BlackFideId "13502956"]
[WhiteElo "2419"]
[BlackElo "2662"]
[Result "0-1"]
[Round "08"]
[TimeControl "180+1"]
[Date "2022.05.31"]
[WhiteClock "0:00:02"]
[BlackClock "0:00:03"]

1. d3 {[%clk 0:03:00]}  d5 {[%clk 0:02:59]} 2. f4 {[%clk 0:03:00]}  Nf6 {[%clk 0:02:57]} 3. g3 {[%clk 0:03:00]}  c5 {[%clk 0:02:50]} 4. Bg2 {[%clk 0:03:00]}  Nc6 {[%clk 0:02:50]} 5. Nf3 {[%clk 0:03:01]}  Bf5 {[%clk 0:02:47]} 6. O-O {[%clk 0:02:59]}  e6 {[%clk 0:02:47]} 7. Nc3 {[%clk 0:02:58]}  Rc8 {[%clk 0:02:26]} 8. Nh4 {[%clk 0:02:30]}  d4 {[%clk 0:01:57]} 9. Ne4 {[%clk 0:02:21]}  Be7 {[%clk 0:01:46]} 10. Nxf5 {[%clk 0:02:07]}  exf5 {[%clk 0:01:47]} 11. Nxf6+ {[%clk 0:02:08]}  Bxf6 {[%clk 0:01:48]} 12. e4 {[%clk 0:02:04]}  dxe3 {[%clk 0:01:46]} 13. c3 {[%clk 0:02:03]}  O-O {[%clk 0:01:39]} 14. Bxe3 {[%clk 0:02:03]}  Qd6 {[%clk 0:01:40]} 15. Qf3 {[%clk 0:01:53]}  Rfd8 {[%clk 0:01:19]} 16. Rad1 {[%clk 0:01:52]}  b5 {[%clk 0:01:16]} 17. Qf2 {[%clk 0:01:46]}  Ne7 {[%clk 0:01:09]} 18. d4 {[%clk 0:01:40]}  c4 {[%clk 0:01:00]} 19. d5 {[%clk 0:01:33]}  b4 {[%clk 0:00:52]} 20. Bd4 {[%clk 0:01:05]}  bxc3 {[%clk 0:00:42]} 21. bxc3 {[%clk 0:01:05]}  Bxd4 {[%clk 0:00:12]} 22. Qxd4 {[%clk 0:01:06]}  Rc7 {[%clk 0:00:13]} 23. Rfe1 {[%clk 0:01:05]}  Nc8 {[%clk 0:00:12]} 24. Qe5 {[%clk 0:01:01]}  g6 {[%clk 0:00:11]} 25. h4 {[%clk 0:00:58]}  h5 {[%clk 0:00:10]} 26. Kh2 {[%clk 0:00:57]}  Qc5 {[%clk 0:00:04]} 27. Qf6 {[%clk 0:00:41]}  Qd6 {[%clk 0:00:03]} 28. Qd4 {[%clk 0:00:40]}  Qc5 {[%clk 0:00:03]} 29. Qe5 {[%clk 0:00:28]}  Qd6 {[%clk 0:00:03]} 30. Rd2 {[%clk 0:00:26]}  Qc5 {[%clk 0:00:02]} 31. Qf6 {[%clk 0:00:22]}  Qd6 {[%clk 0:00:02]} 32. Qd4 {[%clk 0:00:22]}  Qc5 {[%clk 0:00:03]} 33. Qe5 {[%clk 0:00:23]}  Qd6 {[%clk 0:00:03]} 34. Bf3 {[%clk 0:00:23]}  a5 {[%clk 0:00:03]} 35. Rb1 {[%clk 0:00:19]}  Qc5 {[%clk 0:00:02]} 36. Rb8 {[%clk 0:00:17]}  Rcd7 {[%clk 0:00:02]} 37. d6 {[%clk 0:00:15]}  Qa3 {[%clk 0:00:03]} 38. Kh3 {[%clk 0:00:09]}  Kh7 {[%clk 0:00:02]} 39. Bd5 {[%clk 0:00:07]}  Rxd6 {[%clk 0:00:02]} 40. Rb7 {[%clk 0:00:06]}  R6d7 {[%clk 0:00:02]} 41. Rxd7 {[%clk 0:00:06]}  Rxd7 {[%clk 0:00:03]} 42. Re2 {[%clk 0:00:06]}  Qc5 {[%clk 0:00:03]} 43. Bf3 {[%clk 0:00:03]}  Qxe5 {[%clk 0:00:03]} 44. Rxe5 {[%clk 0:00:03]}  Rd3 {[%clk 0:00:04]} 45. Bd5 {[%clk 0:00:03]}  Rxc3 {[%clk 0:00:04]} 46. Bxf7 {[%clk 0:00:04]}  Nd6 {[%clk 0:00:05]} 47. Bd5 {[%clk 0:00:03]}  Kg7 {[%clk 0:00:04]} 48. Re6 {[%clk 0:00:03]}  Ne4 {[%clk 0:00:05]} 49. Re7+ {[%clk 0:00:03]}  Kf8 {[%clk 0:00:04]} 50. Rf7+ {[%clk 0:00:04]}  Ke8 {[%clk 0:00:04]} 51. Rc7 {[%clk 0:00:04]}  Nd6 {[%clk 0:00:04]} 52. Rg7 {[%clk 0:00:02]}  Rd3 {[%clk 0:00:03]} 53. Bc6+ {[%clk 0:00:02]}  Kd8 {[%clk 0:00:03]} 54. Rxg6 {[%clk 0:00:02]}  c3 {[%clk 0:00:03]} 55. Ba4 {[%clk 0:00:03]}  Kc7 {[%clk 0:00:02]} 56. Rg5 {[%clk 0:00:03]}  Ne4 {[%clk 0:00:03]} 57. Rxf5 {[%clk 0:00:02]}  Rxg3+ {[%clk 0:00:02]} 58. Kh2 {[%clk 0:00:03]}  Rd3 {[%clk 0:00:03]} 59. Rxh5 {[%clk 0:00:03]}  Rd2+ {[%clk 0:00:03]} 60. Kh3 {[%clk 0:00:03]}  c2 {[%clk 0:00:04]} 61. Rh7+ {[%clk 0:00:02]}  Kb6 {[%clk 0:00:03]} 62. Bxc2 {[%clk 0:00:02]}  Rxc2 {[%clk 0:00:03]} 63. h5 {[%clk 0:00:03]}  Rxa2 {[%clk 0:00:02]} 64. h6 {[%clk 0:00:03]}  Ra1 {[%clk 0:00:03]} 65. Kg2 {[%clk 0:00:01]}  Ra2+ {[%clk 0:00:02]} 66. Kf3 {[%clk 0:00:02]}  Nf6 {[%clk 0:00:02]} 67. Rf7 {[%clk 0:00:02]}  Ra3+ {[%clk 0:00:03]} 68. Ke2 {[%clk 0:00:02]}  Nd5 {[%clk 0:00:02]} 69. h7 {[%clk 0:00:02]}  Rh3 {[%clk 0:00:02]} 70. f5 {[%clk 0:00:02]}  a4 {[%clk 0:00:02]} 71. Kf2 {[%clk 0:00:01]}  a3 {[%clk 0:00:02]} 72. Kg2 {[%clk 0:00:02]}  Nf4+ {[%clk 0:00:02]} 73. Kf2 {[%clk 0:00:02]}  a2 {[%clk 0:00:03]} 74. Rf8 {[%clk 0:00:02]}  a1=Q {[%clk 0:00:03]} 75. Rb8+ {[%clk 0:00:02]}  Kc7 {[%clk 0:00:04]} 76. h8=Q {[%clk 0:00:02]}  Qxh8 {[%clk 0:00:03]} 77. Rb7+ {[%clk 0:00:02]}  Kxb7 {[%clk 0:00:03]} 0-1


[Site "https://www.chess.com"]